bitfinex/quotes_BTCUSD_20241116
["timestamp","ask_amount","ask_price","bid_price","bid_amount"]
[1731779759319,0.1216524,90959.0,90958.0,4.88632705]
[1731779760491,0.1166524,90959.0,90958.0,4.88632705]
[1731779761215,0.1216524,90959.0,90958.0,4.88632705]
[1731779762373,0.1166524,90959.0,90958.0,4.88632705]
[1731779763100,0.1216524,90959.0,90958.0,4.88632705]
[1731779764036,0.23071495,90959.0,90958.0,4.88632705]
[1731779773447,0.22692295,90959.0,90958.0,4.88632705]
[1731779773664,0.1128604,90959.0,90958.0,4.88632705]
[1731779773875,0.1178604,90959.0,90958.0,4.88632705]
[1731779778329,0.22692295,90959.0,90958.0,4.88632705]
[1731779780097,0.32692295,90959.0,90958.0,4.83132566]
[1731779781044,0.88764429,90959.0,90958.0,4.83132566]
[1731779781289,0.69089357,90959.0,90958.0,4.83132566]
[1731779782498,0.69109718,90959.0,90958.0,4.83132566]
[1731779782730,0.69109608,90959.0,90958.0,4.83132566]
[1731779782965,0.691108,90959.0,90958.0,4.77632428]
[1731779783425,0.88838321,90959.0,90958.0,4.77632428]
[1731779783673,0.691108,90959.0,90958.0,4.77632428]
[1731779784139,0.88674871,90959.0,90958.0,4.77632428]
[1731779784376,0.3252116,90959.0,90958.0,4.77632428]
[1731779785702,0.69153411,90959.0,90958.0,4.77632428]
[1731779786396,0.93828185,90959.0,90958.0,4.77632428]
[1731779787704,0.69153411,90959.0,90958.0,4.77632428]
[1731779791442,0.69153411,90959.0,90958.0,4.16828491]
[1731779792076,0.69153411,90959.0,90958.0,13.16828491]
[1731779793836,0.69153411,90959.0,90958.0,13.11963755]
[1731779794116,0.68953411,90959.0,90958.0,13.11963755]
[1731779794801,0.81472175,90959.0,90958.0,13.11963755]
[1731779795028,0.85408211,90959.0,90958.0,13.11963755]
[1731779795713,0.89719961,90959.0,90958.0,13.11963755]
[1731779795930,0.85408211,90959.0,90958.0,13.11963755]
[1731779797025,0.85388205,90959.0,90958.0,13.11963755]
[1731779798807,0.85588205,90959.0,90958.0,13.11963755]
[1731779799746,0.85388205,90959.0,90958.0,13.11963755]
[1731779799968,0.85588205,90959.0,90958.0,13.11963755]
[1731779800614,0.9649446,90959.0,90958.0,13.11963755]
[1731779800822,0.85588205,90959.0,90958.0,13.11963755]
[1731779801797,0.85586713,90959.0,90958.0,12.79988696]
[1731779802036,0.97146713,90959.0,90958.0,12.79988696]
[1731779802249,0.85386713,90959.0,90958.0,12.79988696]
[1731779802467,0.85586713,90959.0,90958.0,12.79988696]
[1731779803799,1.10244052,90959.0,90958.0,12.79988696]
[1731779804014,0.85586713,90959.0,90958.0,12.79988696]
[1731779805131,0.85386713,90959.0,90958.0,12.79988696]
[1731779806069,1.10044052,90959.0,90958.0,12.79988696]
[1731779806281,0.85386713,90959.0,90958.0,12.79988696]
[1731779807587,0.85586713,90959.0,90958.0,12.79988696]
[1731779808017,1.10244052,90959.0,90958.0,12.79988696]
[1731779808680,1.10044052,90959.0,90958.0,12.79988696]
[1731779808897,0.85386713,90959.0,90958.0,12.79988696]
[1731779809381,1.10042207,90959.0,90958.0,12.79988696]
[1731779809569,1.10243139,90959.0,90958.0,12.79988696]
[1731779809994,0.85586713,90959.0,90958.0,12.79988696]
[1731779810218,1.10243049,90959.0,90958.0,12.79988696]
[1731779810751,0.85586713,90959.0,90958.0,12.79988696]
[1731779810977,0.855833,90959.0,90958.0,12.79988696]
[1731779811672,0.89009994,90959.0,90958.0,12.79988696]
[1731779815709,0.89010826,90959.0,90958.0,12.79988696]
[1731779819545,1.1859969,90959.0,90958.0,12.79988696]
[1731779819757,0.88810826,90959.0,90958.0,12.79988696]
[1731779819972,0.89010826,90959.0,90958.0,12.79988696]
[1731779820395,1.1859969,90959.0,90958.0,12.79988696]
[1731779820615,0.89010826,90959.0,90958.0,12.79988696]
[1731779821083,1.18610276,90959.0,90958.0,12.79988696]
[1731779821525,0.89010826,90959.0,90958.0,12.79988696]
[1731779821782,1.18615362,90959.0,90958.0,12.79988696]
[1731779821997,0.89010826,90959.0,90958.0,12.79988696]
[1731779823297,0.88810826,90959.0,90958.0,12.79988696]
[1731779825233,0.89010826,90959.0,90958.0,12.79988696]
[1731779825923,1.08144481,90959.0,90958.0,11.99325789]
[1731779826171,1.08144481,90959.0,90958.0,11.71114335]
[1731779826172,0.99206133,90959.0,90958.0,11.71114335]
[1731779826406,0.99756468,90959.0,90958.0,11.57970909]
[1731779826629,1.25657283,90959.0,90958.0,10.80129208]
[1731779826837,1.25657283,90959.0,90958.0,10.65546208]
[1731779827064,1.25657283,90959.0,90958.0,10.08929473]
[1731779827513,1.25657283,90959.0,90958.0,9.97935473]
[1731779828141,1.27105009,90959.0,90958.0,9.98035473]
[1731779828344,1.27105009,90959.0,90958.0,9.95836673]
[1731779828560,1.27105009,90959.0,90958.0,9.43554988]
[1731779828981,1.28505009,90959.0,90958.0,9.43654988]
[1731779829231,1.58129091,90959.0,90958.0,9.43654988]
[1731779829439,1.56729091,90959.0,90958.0,9.15571094]
[1731779829697,1.17598754,90959.0,90958.0,9.1204472]
[1731779829881,1.17598754,90959.0,90958.0,9.1184472]
[1731779829882,1.14798754,90959.0,90958.0,9.1184472]
[1731779830108,1.11704153,90959.0,90958.0,9.1184472]
[1731779830325,0.88421953,90959.0,90958.0,9.1194472]
[1731779830562,0.64561953,90959.0,90958.0,9.1194472]
[1731779830775,0.77582193,90959.0,90958.0,9.1194472]
[1731779831019,1.13228488,90959.0,90958.0,9.0974592]
[1731779831253,1.01544531,90959.0,90958.0,8.79836465]
[1731779831490,1.31163912,90959.0,90958.0,8.41054671]
[1731779831714,1.13104531,90959.0,90958.0,8.1455808]
[1731779831946,1.12198276,90959.0,90958.0,8.1455808]
[1731779832427,1.12198276,90959.0,90958.0,7.65916583]
[1731779832428,1.11498276,90959.0,90958.0,7.65916583]
[1731779832668,1.14692877,90959.0,90958.0,7.59320183]
[1731779832900,1.79429132,90959.0,90958.0,7.47975108]
[1731779833135,1.76334531,90959.0,90958.0,7.47975108]
[1731779833374,1.76634531,90959.0,90958.0,7.43767308]
[1731779833649,1.76634531,90959.0,90958.0,7.19299774]
[1731779833650,1.79729132,90959.0,90958.0,7.19299774]
[1731779833873,1.81129132,90959.0,90958.0,7.04279595]
[1731779834095,1.79629132,90959.0,90958.0,6.54131701]
[1731779834310,1.79629132,90959.0,90958.0,6.54231701]
[1731779834531,1.81029132,90959.0,90958.0,6.33731004]
[1731779834755,1.81029132,90959.0,90958.0,6.31621004]
[1731779834964,1.80929132,90959.0,90958.0,6.1351111]
[1731779835177,1.82229132,90959.0,90958.0,6.1361111]
[1731779835399,1.82229132,90959.0,90958.0,5.86920816]
[1731779835610,1.82229132,90959.0,90958.0,5.65533322]
[1731779835832,1.82229132,90959.0,90958.0,5.64523322]
[1731779836054,1.82229132,90959.0,90958.0,5.64609032]
[1731779836492,1.82229132,90959.0,90958.0,5.57191132]
[1731779837127,1.82229132,90959.0,90958.0,5.52793532]
[1731779837347,1.77540008,90959.0,90958.0,5.52793532]
[1731779837593,2.16633753,90959.0,90958.0,5.32646867]
[1731779838024,2.65439679,90959.0,90958.0,5.13818925]
[1731779838486,2.46233392,90959.0,90958.0,4.68845137]
[1731779838726,2.46233392,90959.0,90958.0,4.68296137]
[1731779838953,2.94908332,90959.0,90958.0,4.68296137]
[1731779839385,2.16633753,90959.0,90958.0,4.66097337]
[1731779839601,2.27540008,90959.0,90958.0,4.53105137]
[1731779839829,2.30634609,90959.0,90958.0,4.33497243]
[1731779840091,2.30634609,90959.0,90958.0,4.31271795]
[1731779840330,2.30634609,90959.0,90958.0,4.30172313]
[1731779840548,2.14179809,90959.0,90958.0,4.00652552]
[1731779841032,2.16466356,90959.0,90958.0,4.00280009]
[1731779841277,2.13371755,90959.0,90958.0,4.00280009]
[1731779841511,2.13371755,90959.0,90958.0,3.92058542]
[1731779841731,2.42964165,90959.0,90958.0,3.87660942]
[1731779841937,2.11778478,90959.0,90958.0,3.87660942]
[1731779842198,1.93746,90959.0,90958.0,3.87660942]
[1731779842634,1.31686,90959.0,90958.0,3.87660942]
[1731779842886,1.82186,90959.0,90958.0,3.87660942]
[1731779843570,1.28256,90959.0,90958.0,3.87660942]
[1731779845738,1.28395894,90959.0,90958.0,3.87660942]
[1731779846619,1.24967211,90959.0,90958.0,3.87660942]
[1731779847301,1.2839197,90959.0,90958.0,3.87660942]
[1731779847762,1.2839197,90959.0,90958.0,3.78992074]
[1731779847999,1.3945197,90959.0,90958.0,3.74594474]
[1731779848418,1.6289176,90959.0,90958.0,3.56463004]
[1731779848626,1.65986361,90959.0,90958.0,3.56463004]
[1731779848833,1.65986361,90959.0,90958.0,3.29047142]
[1731779849112,1.65986361,90959.0,90958.0,3.26498742]
[1731779849330,2.19916361,90959.0,90958.0,3.26498742]
[1731779849534,2.19916361,90959.0,90958.0,3.19902342]
[1731779849763,2.19916361,90959.0,90958.0,3.17703542]
[1731779849972,2.19916361,90959.0,90958.0,3.15504742]
[1731779850194,2.07382826,90959.0,90958.0,3.15504742]
[1731779850706,2.07382826,90959.0,90958.0,3.10307142]
[1731779850897,2.07382826,90959.0,90958.0,2.35089777]
[1731779851104,2.07382826,90959.0,90958.0,2.2878788]
[1731779851322,2.07382826,90959.0,90958.0,2.28452662]
[1731779851533,2.07382826,90959.0,90958.0,2.13300662]
[1731779851983,2.07382826,90959.0,90958.0,2.02849554]
[1731779852224,2.07382826,90959.0,90958.0,1.73076845]
[1731779852453,2.06822826,90959.0,90958.0,1.62165645]
[1731779852697,2.06822826,90959.0,90958.0,1.59966845]
[1731779852919,2.55201927,90959.0,90958.0,1.59966845]
[1731779853441,1.95916571,90959.0,90958.0,1.48972845]
[1731779853690,1.9282197,90959.0,90958.0,1.47086876]
[1731779853904,1.9282197,90959.0,90958.0,1.46424631]
[1731779854124,2.03728225,90959.0,90958.0,1.46424631]
[1731779854619,2.52107326,90959.0,90958.0,1.35430631]
[1731779855049,2.03728225,90959.0,90958.0,1.35430631]
[1731779855515,2.03728225,90959.0,90958.0,1.26635431]
[1731779855790,2.03728225,90959.0,90958.0,1.24436631]
[1731779855990,2.03493267,90959.0,90958.0,1.24436631]
[1731779856943,1.91933267,90959.0,90958.0,1.24436631]
[1731779858054,2.14033267,90959.0,90958.0,1.24436631]
[1731779858741,2.14204687,90959.0,90958.0,1.24436631]
[1731779859163,2.14204687,90959.0,90958.0,1.23592382]
[1731779860526,2.13995239,90959.0,90958.0,1.23592382]
[1731779860734,2.13995239,90959.0,90958.0,1.21551382]
[1731779861017,1.91895239,90959.0,90958.0,1.21551382]
[1731779862109,1.91895239,90959.0,90958.0,1.17221582]
[1731779862345,1.91895239,90959.0,90958.0,1.15022782]
[1731779862552,1.91895239,90959.0,90958.0,0.95857882]
[1731779862759,1.9498984,90959.0,90958.0,0.94661882]
[1731779863187,1.9498984,90959.0,90958.0,0.93913882]
[1731779863420,1.9498984,90959.0,90958.0,0.91715082]
[1731779863675,2.1708984,90959.0,90958.0,0.82919882]
[1731779863887,1.9498984,90959.0,90958.0,0.82919882]
[1731779864333,1.84083585,90959.0,90958.0,0.82919882]
[1731779864538,1.80988984,90959.0,90958.0,0.82919882]
[1731779864797,1.89217216,90959.0,90958.0,0.82919882]
[1731779865897,1.89217216,90959.0,90958.0,0.80843882]
[1731779866125,2.09005448,90959.0,90958.0,0.34531588]
[1731779866359,2.09005448,90959.0,90925.0,0.1651264]
[1731779866360,0.739973,90931.0,90925.0,0.1651264]
[1731779866570,0.239979,90926.0,90925.0,0.11182443]
[1731779867003,0.239979,90926.0,90924.0,0.0008565]
[1731779867004,0.23998,90925.0,90924.0,0.0008565]
[1731779867231,0.33869254,90925.0,90924.0,0.0008565]
[1731779867953,0.23998,90925.0,90924.0,0.0008565]
[1731779868376,0.34904255,90925.0,90924.0,0.0008565]
[1731779868698,0.34904255,90925.0,90904.0,0.1651264]
[1731779868699,0.117004,90905.0,90904.0,0.16190063]
[1731779868913,0.22606655,90905.0,90904.0,0.16190063]
[1731779869128,0.005,90898.0,90894.0,0.1651264]
[1731779869347,0.22407555,90898.0,90894.0,0.1651264]
[1731779869786,0.22407555,90898.0,90888.0,0.0008568]
[1731779870240,0.22407555,90898.0,90889.0,0.110023]
[1731779872260,0.22407555,90898.0,90891.0,0.110021]
[1731779872714,0.22407555,90898.0,90889.0,0.110023]
[1731779873147,0.22407555,90898.0,90888.0,0.0008568]
[1731779873363,0.22407555,90898.0,90890.0,0.110023]
[1731779875998,0.11406255,90898.0,90893.0,0.110018]
[1731779876286,0.22407555,90898.0,90893.0,0.110018]
[1731779876507,0.11406255,90898.0,90897.0,0.1108707]
[1731779876736,0.11406255,90898.0,90897.0,0.0008567]
[1731779877661,0.22407555,90898.0,90897.0,0.0008567]
[1731779878596,0.11406255,90898.0,90897.0,0.0008567]
[1731779880740,0.11406255,90898.0,90897.0,0.1108707]
[1731779882978,0.11406255,90898.0,90897.0,0.0008567]
[1731779883667,0.22407555,90898.0,90897.0,0.0008567]
[1731779888255,0.22607555,90898.0,90897.0,0.0008567]
[1731779890636,0.32607555,90898.0,90897.0,0.0008567]
[1731779892129,0.34907555,90898.0,90897.0,0.0008567]
[1731779892340,0.44777567,90898.0,90897.0,0.0008567]
[1731779892554,0.115027,90886.0,90885.0,0.11353849]
[1731779892768,0.22408955,90886.0,90885.0,0.11353849]
[1731779892984,0.22408955,90886.0,90883.0,0.0008569]
[1731779892985,0.11503,90884.0,90883.0,0.0008569]
[1731779893220,0.22409255,90884.0,90883.0,0.0008569]
[1731779894564,0.22409255,90884.0,90883.0,0.0007969]
[1731779895209,0.10906255,90884.0,90883.0,0.0007969]
[1731779895655,0.21909255,90884.0,90883.0,0.0007969]
[1731779899004,0.220037,90894.0,90883.0,0.0007969]
[1731779899005,0.002,90915.0,90883.0,0.0007969]
[1731779899218,0.1651264,90917.0,90883.0,0.0007969]
[1731779899219,0.1651264,90896.0,90883.0,0.0007969]
[1731779899496,0.0017152,90904.0,90901.0,0.12548726]
[1731779899922,0.0017152,90904.0,90902.0,0.110007]
[1731779900142,0.0017152,90904.0,90901.0,0.12548726]
[1731779900143,0.10906255,90903.0,90901.0,0.12548726]
[1731779900357,0.10906255,90903.0,90901.0,0.23549526]
[1731779900806,0.10906255,90903.0,90901.0,0.12548726]
[1731779901044,0.10906255,90903.0,90899.0,0.110011]
[1731779901489,0.10906255,90903.0,90897.0,0.110014]
[1731779901700,0.10906255,90903.0,90898.0,0.110012]
[1731779901929,0.10906255,90903.0,90901.0,0.001]
[1731779902850,0.110008,90902.0,90901.0,0.001]
[1731779903085,0.21907055,90902.0,90896.0,0.110015]
[1731779903357,0.10906255,90901.0,90894.0,0.110017]
[1731779903592,0.10906255,90901.0,90891.0,0.11002]
[1731779903593,0.110013,90898.0,90891.0,0.11002]
[1731779903836,0.10906255,90897.0,90891.0,0.11002]
[1731779904788,0.10906255,90897.0,90883.0,0.1659233]
[1731779904789,0.10906255,90897.0,90888.0,0.220051]
[1731779905024,0.10906255,90897.0,90893.0,0.110019]
[1731779905510,0.21907755,90897.0,90891.0,0.111021]
[1731779905762,0.110016,90896.0,90888.0,0.220051]
[1731779905995,0.10906255,90895.0,90890.0,0.110022]
[1731779906450,0.10906255,90895.0,90891.0,0.110021]
[1731779906671,0.10906255,90895.0,90888.0,0.001]
[1731779906898,0.10906255,90895.0,90890.0,0.110023]
[1731779907381,0.10906255,90895.0,90891.0,0.110021]
[1731779907603,0.10906255,90895.0,90894.0,0.110018]
[1731779908981,0.1651264,90907.0,90903.0,0.110007]
[1731779909206,0.11077775,90904.0,90903.0,0.110007]
[1731779910760,0.11077775,90904.0,90903.0,0.111007]
[1731779911196,0.11077775,90904.0,90903.0,0.110007]
[1731779911406,0.11077775,90904.0,90903.0,0.111007]
[1731779911853,0.11077775,90904.0,90903.0,0.110007]
[1731779912739,0.11077775,90904.0,90903.0,0.111007]
[1731779914597,0.11077775,90904.0,90903.0,0.23649426]
[1731779914598,0.0017152,90904.0,90903.0,0.23649426]
[1731779918411,0.0017152,90904.0,90903.0,0.23649426]
[1731779918686,0.0017152,90904.0,90903.0,0.24149426]
[1731779919365,0.0017152,90904.0,90903.0,0.24049426]
[1731779922210,0.0017152,90904.0,90903.0,0.28519419]
[1731779927952,0.0017152,90904.0,90903.0,0.29019419]
[1731779929758,0.0017152,90904.0,90903.0,0.28519419]
[1731779929974,0.0017152,90904.0,90903.0,0.115007]
[1731779930912,0.0017152,90904.0,90903.0,0.19730623]
[1731779932848,0.0017152,90904.0,90903.0,0.110007]
[1731779938648,0.0017152,90904.0,90900.0,5.0]
[1731779938855,0.21906955,90903.0,90900.0,5.0]
[1731779939063,0.110009,90902.0,90900.0,5.0]
[1731779939282,0.10906255,90901.0,90900.0,5.0]
[1731779939712,0.1117212,90904.0,90900.0,5.0]
[1731779939713,0.0017152,90904.0,90903.0,0.110007]
[1731779948385,0.1087092,90914.0,90907.0,0.110001]
[1731779948600,0.10906255,90913.0,90907.0,0.110001]
[1731779948824,0.21905855,90913.0,90902.0,0.220017]
[1731779949531,0.21905855,90913.0,90907.0,0.110002]
[1731779949764,0.10906255,90913.0,90910.0,0.109998]
[1731779949967,0.10906255,90913.0,90908.0,0.11]
[1731779952778,0.10906255,90908.0,90904.0,0.110005]
[1731779952984,0.10906255,90908.0,90903.0,0.220014]
[1731779953189,0.10906255,90908.0,90904.0,0.110005]
[1731779953432,0.10906255,90908.0,90905.0,0.110004]
[1731779954117,0.10906255,90908.0,90900.0,5.0]
[1731779954118,0.110009,90902.0,90900.0,5.0]
[1731779954345,0.10906255,90901.0,90900.0,5.0]
[1731779955018,0.10906255,90901.0,90900.0,5.110011]
[1731779959491,0.219994,90912.0,90900.0,5.110011]
[1731779959492,0.04491859,90918.0,90900.0,0.08230516]
[1731779959732,0.10906255,90916.0,90907.0,0.220005]
[1731779959958,0.10906255,90916.0,90908.0,0.220002]
[1731779960186,0.10906255,90916.0,90912.0,0.109995]
[1731779960401,0.10906255,90916.0,90910.0,0.109998]
[1731779960620,0.10906255,90916.0,90914.0,0.109993]
[1731779960856,0.1651264,90935.0,90912.0,0.30229616]
[1731779961116,0.10906255,90934.0,90923.0,0.219966]
[1731779961355,0.109974,90930.0,90920.0,0.109986]
[1731779961570,0.109974,90930.0,90919.0,0.1651264]
[1731779961571,0.10906255,90929.0,90919.0,0.1651264]
[1731779961790,0.10906255,90929.0,90924.0,0.109981]
[1731779962000,0.21903855,90929.0,90924.0,0.109981]
[1731779962210,0.10906255,90929.0,90924.0,0.10998]
[1731779962462,0.023,90928.0,90919.0,0.1651264]
[1731779962676,0.10906255,90927.0,90924.0,0.109981]
[1731779962888,0.10906255,90927.0,90925.0,0.10998]
[1731779963564,0.10906255,90927.0,90920.0,0.219973]
[1731779963819,0.10906255,90927.0,90923.0,0.109982]
[1731779964085,0.10906255,90927.0,90920.0,0.219973]
[1731779964301,0.10906255,90927.0,90926.0,0.109979]
[1731779965612,0.00906255,90927.0,90926.0,0.109979]
[1731779967761,0.00906255,90927.0,90924.0,0.109981]
[1731779967993,0.00906255,90927.0,90919.0,0.1651264]
[1731779968201,0.00906255,90927.0,90920.0,0.219972]
[1731779968414,0.00906255,90927.0,90919.0,0.109988]
[1731779968415,0.109982,90924.0,90919.0,0.109988]
[1731779969083,0.10906255,90926.0,90920.0,0.10953933]
[1731779969527,0.21904155,90926.0,90921.0,0.109985]
[1731779970805,0.10906255,90926.0,90922.0,0.109984]
[1731779971603,0.10906255,90926.0,90921.0,0.109984]
[1731779973452,0.10906255,90926.0,90920.0,0.329959]
[1731779973657,0.10906255,90926.0,90919.0,0.1651264]
[1731779973895,0.10906255,90926.0,90920.0,0.219973]
[1731779974300,0.10906255,90926.0,90919.0,0.1651264]
[1731779974527,0.10906255,90926.0,90921.0,0.109984]
[1731779974919,0.10906255,90926.0,90919.0,0.1651264]
[1731779975128,0.10906255,90926.0,90921.0,0.109984]
[1731779975619,0.10906255,90926.0,90921.0,0.109985]
[1731779976042,0.00906255,90926.0,90921.0,0.109985]
[1731779976563,0.00906255,90926.0,90922.0,0.109983]
[1731779978228,0.01077635,90926.0,90922.0,0.109983]
[1731779978531,0.0017138,90926.0,90922.0,0.109983]
[1731779979670,0.1116938,90926.0,90921.0,0.109984]
[1731779981626,0.2216728,90926.0,90920.0,0.0008569]
[1731779982070,0.10998,90925.0,90920.0,0.0008569]
[1731779982295,0.109983,90924.0,90920.0,0.0008569]
[1731779983581,0.0017138,90926.0,90920.0,0.1108429]
[1731779983800,0.0017138,90926.0,90920.0,0.0008569]
[1731779983950,0.109981,90925.0,90920.0,0.0008569]
[1731779984363,0.1116938,90926.0,90920.0,0.1108429]
[1731779984581,0.0017138,90926.0,90920.0,0.0008569]
[1731779984792,0.109982,90924.0,90920.0,0.0008569]
[1731779985210,0.0017138,90926.0,90920.0,0.0008569]
[1731779985211,0.0017138,90926.0,90925.0,0.10998]
[1731779985424,0.0247138,90926.0,90925.0,0.10998]
[1731779986543,0.0017138,90926.0,90925.0,0.10998]
[1731779990372,0.0017138,90926.0,90925.0,0.1108369]
[1731779993467,0.0017138,90926.0,90925.0,0.0008569]
[1731779993667,0.0017138,90926.0,90925.0,0.1108369]
[1731779998296,0.0017138,90926.0,90925.0,0.0008569]
[1731779999160,0.0017138,90926.0,90925.0,0.1108369]
[1731780002952,0.0017138,90926.0,90925.0,0.19314206]
[1731780006779,0.1346928,90926.0,90925.0,0.0008569]
[1731780007237,0.219961,90925.0,90910.0,0.005]
[1731780007457,0.023,90924.0,90919.0,0.1651264]
[1731780007702,0.109987,90920.0,90914.0,0.109994]
[1731780007913,0.109993,90915.0,90910.0,0.114998]
[1731780008837,0.132994,90914.0,90908.0,0.005]
[1731780009045,0.023,90912.0,90908.0,0.005]
[1731780009270,0.023,90912.0,90907.0,0.09229887]
[1731780009946,0.023,90912.0,90908.0,0.11]
[1731780010856,0.023,90913.0,90902.0,0.220016]
[1731780011095,0.023,90914.0,90903.0,0.220014]
[1731780011330,0.023,90913.0,90909.0,0.109999]
[1731780011572,0.023,90913.0,90902.0,0.08230516]
[1731780011797,0.023,90912.0,90906.0,0.110002]
[1731780012032,0.023,90912.0,90907.0,0.110001]
[1731780012500,0.023,90912.0,90907.0,0.100001]
[1731780012956,0.109997,90912.0,90907.0,0.100001]
[1731780014413,0.109997,90912.0,90907.0,0.1008579]
[1731780014906,0.109997,90911.0,90907.0,0.0008569]
[1731780015605,0.023,90916.0,90907.0,0.0008569]
[1731780015851,0.109996,90912.0,90907.0,0.0008569]
[1731780016088,0.109996,90912.0,90907.0,0.1108589]
[1731780016568,0.109996,90912.0,90907.0,0.0008569]
[1731780017232,0.023,90913.0,90909.0,0.109999]
[1731780017680,0.023,90917.0,90907.0,0.0008569]
[1731780017915,0.109992,90916.0,90910.0,0.109998]
[1731780018171,0.023,90917.0,90908.0,0.220002]
[1731780018172,0.109994,90914.0,90908.0,0.11]
[1731780018387,0.109994,90914.0,90907.0,0.0008569]
[1731780018388,0.001714,90932.0,90915.0,0.08230516]
[1731780018678,0.04668205,90926.0,90925.0,0.10998]
[1731780019328,0.04668205,90926.0,90915.0,0.08230516]
[1731780019552,0.04668205,90926.0,90923.0,0.109982]
[1731780019797,0.04668205,90926.0,90924.0,0.109981]
[1731780020513,0.04668205,90926.0,90925.0,0.10998]
[1731780020774,0.0017138,90926.0,90925.0,0.10998]
[1731780023240,0.0017138,90926.0,90920.0,0.219973]
[1731780023455,0.0017138,90926.0,90919.0,0.219976]
[1731780023891,0.0017138,90926.0,90918.0,0.1651264]
[1731780024106,0.0017138,90926.0,90925.0,0.10998]
[1731780027127,0.023,90925.0,90904.0,0.12535298]
[1731780027363,0.023,90922.0,90918.0,0.1651264]
[1731780027582,0.132984,90922.0,90917.0,0.10999]
[1731780027790,0.023,90924.0,90919.0,0.109987]
[1731780028002,0.023,90923.0,90919.0,0.109987]
[1731780028710,0.023,90925.0,90921.0,0.109984]
[1731780028921,0.023,90925.0,90919.0,0.109987]
[1731780028922,0.132981,90925.0,90919.0,0.109987]
[1731780029167,0.132981,90925.0,90920.0,0.109986]
[1731780029394,0.0017138,90926.0,90909.0,0.22]
[1731780029604,0.0017138,90926.0,90908.0,0.1701264]
[1731780029605,0.0017138,90926.0,90925.0,0.10998]
[1731780030716,0.0017138,90926.0,90916.0,0.219983]
[1731780030920,0.0017138,90926.0,90918.0,0.3851044]
[1731780031144,0.0017138,90926.0,90921.0,0.109985]
[1731780032219,0.109982,90924.0,90919.0,0.109987]
[1731780032438,0.023,90925.0,90908.0,0.1651264]
[1731780032688,0.023,90925.0,90919.0,0.1651264]
[1731780032913,0.023,90922.0,90917.0,0.109989]
[1731780033156,0.132984,90922.0,90917.0,0.109989]
[1731780034053,0.109982,90924.0,90917.0,0.109989]
[1731780034318,0.023,90923.0,90918.0,0.109989]
[1731780034959,0.109983,90923.0,90918.0,0.109989]
[1731780035181,0.023,90922.0,90918.0,0.109989]
[1731780035668,0.023,90923.0,90917.0,0.109989]
[1731780035874,0.023,90922.0,90917.0,0.109989]
[1731780036317,0.132984,90922.0,90917.0,0.109989]
[1731780036529,0.132984,90922.0,90917.0,0.10999]
[1731780036957,0.0017138,90926.0,90919.0,0.109987]
[1731780036958,0.132981,90925.0,90919.0,0.109987]
[1731780037170,0.023,90923.0,90919.0,0.109987]
[1731780037611,0.109986,90921.0,90913.0,0.219988]
[1731780037824,0.109993,90915.0,90910.0,0.1651264]
[1731780038042,0.109995,90914.0,90910.0,0.1651264]
[1731780038301,0.109991,90916.0,90915.0,0.001714]
[1731780038520,0.109997,90912.0,90907.0,0.0008569]
[1731780038744,0.023,90916.0,90908.0,0.1651264]
[1731780038992,0.242978,90918.0,90907.0,0.1108589]
[1731780038993,0.109996,90913.0,90907.0,0.1108589]
[1731780039214,0.109996,90913.0,90908.0,0.11]
[1731780039439,0.023,90914.0,90907.0,0.0008569]
[1731780039667,0.023,90911.0,90907.0,0.1108579]
[1731780040387,0.023,90911.0,90900.0,0.000857]
[1731780040388,0.109996,90912.0,90900.0,0.000857]
[1731780040389,0.123,90907.0,90900.0,0.000857]
[1731780040596,0.238009,90901.0,90900.0,0.000857]
[1731780040843,0.36336198,90901.0,90900.0,0.000857]
[1731780041051,0.36336198,90901.0,90880.0,0.13527648]
[1731780041052,0.133034,90881.0,90880.0,0.13527648]
[1731780041763,0.110037,90878.0,90859.0,0.1651264]
[1731780042000,0.110037,90878.0,90860.0,0.110058]
[1731780042001,0.24209955,90878.0,90860.0,0.110058]
[1731780042216,0.24611465,90878.0,90861.0,0.110057]
[1731780042406,0.24611465,90878.0,90859.0,0.1651264]
[1731780042658,0.24611465,90878.0,90859.0,0.2751854]
[1731780042872,0.0270151,90878.0,90871.0,0.12535298]
[1731780043067,0.1370521,90878.0,90871.0,0.12535298]
[1731780043566,0.1370521,90878.0,90868.0,0.00305705]
[1731780044272,0.1370521,90878.0,90868.0,0.0008563]
[1731780044510,0.13798938,90878.0,90868.0,0.0008563]
[1731780048330,0.24705193,90878.0,90868.0,0.0008563]
[1731780052502,0.38541524,90878.0,90868.0,0.0008563]
[1731780052716,0.34705193,90878.0,90868.0,0.0008563]
[1731780053403,0.34209955,90878.0,90868.0,0.0008563]
[1731780053840,0.38546286,90878.0,90868.0,0.0008563]
[1731780054519,0.34709955,90878.0,90868.0,0.0008563]
[1731780056475,0.38546286,90878.0,90868.0,0.0008563]
[1731780058052,0.110047,90870.0,90868.0,0.0008563]
[1731780058357,0.28047286,90870.0,90868.0,0.0008563]
[1731780058570,0.24210955,90870.0,90868.0,0.0008563]
[1731780059903,0.28647489,90870.0,90868.0,0.0008563]
[1731780064360,0.17741234,90870.0,90868.0,0.0008563]
[1731780065348,0.133047,90870.0,90868.0,0.0008563]
[1731780065850,0.22008,90876.0,90868.0,0.0008563]
[1731780066089,0.133047,90870.0,90868.0,0.0008563]
[1731780066566,0.023,90870.0,90868.0,0.0008563]
[1731780067019,0.023,90871.0,90868.0,0.0008563]
[1731780067270,0.110047,90870.0,90868.0,0.0008563]
[1731780067525,0.133047,90870.0,90868.0,0.0008563]
[1731780068023,0.023,90875.0,90868.0,0.0008563]
[1731780068262,0.023,90875.0,90868.0,0.0030571]
[1731780068511,0.11004,90876.0,90869.0,0.1109042]
[1731780068749,0.023,90875.0,90869.0,0.1109042]
[1731780068974,0.023,90877.0,90869.0,0.0008562]
[1731780069204,0.220077,90877.0,90869.0,0.0008562]
[1731780069480,0.023,90874.0,90869.0,0.0008562]
[1731780069709,0.220089,90872.0,90869.0,0.0008562]
[1731780069979,0.220082,90875.0,90869.0,0.0008562]
[1731780070220,0.110044,90873.0,90869.0,0.0008562]
[1731780070454,0.110047,90871.0,90869.0,0.0008562]
[1731780070687,0.133047,90870.0,90869.0,0.0008562]
[1731780071852,0.04446763,90878.0,90869.0,0.0008562]
[1731780072121,0.1108923,90880.0,90872.0,0.12535298]
[1731780072355,0.1108923,90880.0,90873.0,0.110043]
[1731780072580,0.1108923,90880.0,90872.0,0.22228965]
[1731780072581,0.0008573,90880.0,90872.0,0.22228965]
[1731780072821,0.0008573,90877.0,90872.0,0.22228965]